bitfinex/quotes_BTCUSD_20210402
["timestamp","ask_amount","ask_price","bid_price","bid_amount"]
[1617331297947,1.37411,60002.0,60000.0,4.999]
[1617331298149,2.478,60001.0,60000.0,4.999]
[1617331298350,3.883,60001.0,60000.0,4.999]
[1617331298575,4.266679,60001.0,60000.0,4.999]
[1617331298980,4.266679,60001.0,59968.0,0.0008]
[1617331298981,2.616679,60001.0,59968.0,0.0008]
[1617331299178,0.161,59993.0,59968.0,0.0008]
[1617331299376,0.162,59985.0,59968.0,0.0008]
[1617331299573,0.383679,59984.0,59969.0,0.00143724]
[1617331299775,0.3309268,59983.0,59969.0,0.0004]
[1617331299976,0.33386,59977.0,59969.0,0.0004]
[1617331300177,0.383679,59976.0,59968.0,0.0008]
[1617331300376,0.3289268,59975.0,59968.0,0.0004]
[1617331300577,0.81661796,59974.0,59968.0,0.0004]
[1617331300775,0.17,59973.0,59968.0,0.0004]
[1617331300974,0.77961796,59972.0,59968.0,0.0004]
[1617331301196,0.20936,59971.0,59968.0,0.0004]
[1617331301399,0.889135,59970.0,59968.0,0.0004]
[1617331301602,1.28507396,59970.0,59968.0,0.0004]
[1617331301801,0.037,59969.0,59968.0,0.0004]
[1617331301999,0.420679,59969.0,59968.0,0.0004]
[1617331302199,0.790679,59969.0,59968.0,0.0004]
[1617331302414,0.7917113,59969.0,59968.0,0.0004]
[1617331303017,0.7917113,59969.0,59964.0,0.0004]
[1617331303216,0.405,59968.0,59964.0,0.0004]
[1617331303425,0.383679,59967.0,59964.0,0.0004]
[1617331303617,0.0004,59965.0,59964.0,0.0004]
[1617331304027,0.2054,59965.0,59964.0,0.0004]
[1617331304231,0.2414,59965.0,59964.0,0.0004]
[1617331304428,0.002,59979.0,59964.0,0.0004]
[1617331304631,0.383679,59976.0,59964.0,0.0004]
[1617331304828,0.08348761,59969.0,59964.0,0.0004]
[1617331305027,0.02,59968.0,59964.0,0.0004]
[1617331305436,0.036,59967.0,59964.0,0.0004]
[1617331305631,0.250428,59969.0,59965.0,0.99]
[1617331305835,0.08346701,59988.0,59968.0,2.83316]
[1617331306032,0.036,59987.0,59969.0,1.373146]
[1617331306231,0.036,59987.0,59970.0,0.99303724]
[1617331306448,0.056,59987.0,59971.0,1.373128]
[1617331306646,0.250348,59983.0,59972.0,1.34201276]
[1617331306852,0.250348,59983.0,59973.0,1.373116]
[1617331307048,0.250348,59983.0,59974.0,0.99]
[1617331307252,0.250348,59983.0,59982.0,2.616]
[1617331307451,0.417268,60007.0,59982.0,2.616]
[1617331307452,0.00097645,60004.0,59983.0,0.26803724]
[1617331307653,0.417268,60007.0,59987.0,0.383015]
[1617331307848,0.417268,60007.0,60000.0,4.89421352]
[1617331308252,0.250256,60004.0,60000.0,4.89421352]
[1617331308450,0.037,60003.0,60000.0,4.89421352]
[1617331308850,0.037,60003.0,60000.0,4.87921352]
[1617331309275,0.057,60003.0,60000.0,4.87921352]
[1617331309678,0.02,60003.0,60000.0,4.87921352]
[1617331310077,0.00293147,60002.0,60000.0,9.87921352]
[1617331310278,0.03895428,60001.0,60000.0,9.87921352]
[1617331310477,0.02293141,60003.0,60000.0,9.87921352]
[1617331310478,0.16,60003.0,60000.0,9.87921352]
[1617331310876,1.77429366,60001.0,60000.0,9.87921352]
[1617331311077,0.67429366,60001.0,60000.0,9.87921352]
[1617331311276,0.93429366,60001.0,60000.0,9.87921352]
[1617331312136,0.95429366,60001.0,60000.0,9.87921352]
[1617331312531,1.84429366,60001.0,60000.0,9.87921352]
[1617331312734,2.96029366,60001.0,60000.0,7.65211352]
[1617331312937,4.43515366,60001.0,60000.0,5.63391352]
[1617331313136,3.04515366,60001.0,60000.0,3.74313287]
[1617331313334,3.04515366,60001.0,60000.0,3.40886787]
[1617331313335,3.20315366,60001.0,60000.0,3.40886787]
[1617331313534,3.22315366,60001.0,60000.0,3.40886787]
[1617331313732,3.44883266,60001.0,60000.0,3.40886787]
[1617331313935,3.44883266,60001.0,60000.0,3.40866787]
[1617331313936,3.42883266,60001.0,60000.0,3.40866787]
[1617331314133,3.42883266,60001.0,60000.0,2.40956787]
[1617331314932,3.60883266,60001.0,60000.0,2.40956787]
[1617331315132,3.55283266,60001.0,60000.0,2.40956787]
[1617331315532,3.50283266,60001.0,60000.0,2.40956787]
[1617331317460,3.50283266,60001.0,60000.0,2.39456787]
[1617331317663,3.34283266,60001.0,60000.0,2.39456787]
[1617331317859,3.50283266,60001.0,60000.0,2.39456787]
[1617331318058,3.54518482,60001.0,60000.0,2.38956787]
[1617331318259,2.38518482,60001.0,60000.0,1.38986787]
[1617331318466,1.78283266,60001.0,60000.0,1.38986787]
[1617331318660,1.33797266,60001.0,60000.0,1.38986787]
[1617331319061,1.49797266,60001.0,60000.0,1.38986787]
[1617331320279,1.33797266,60001.0,60000.0,1.38986787]
[1617331321278,1.89797266,60001.0,60000.0,1.38986787]
[1617331322299,1.89797266,60001.0,60000.0,1.36486787]
[1617331322503,1.33797266,60001.0,60000.0,1.36486787]
[1617331322702,0.67797266,60001.0,60000.0,1.35986787]
[1617331322900,0.31,60001.0,60000.0,1.35986787]
[1617331323099,0.23514169,60004.0,60000.0,1.35986787]
[1617331323301,0.23514169,60004.0,60000.0,1.34986787]
[1617331323507,0.23514169,60004.0,60000.0,1.33946787]
[1617331323705,0.15726319,60001.0,60000.0,1.34199198]
[1617331323903,0.15725414,60003.0,60000.0,1.72565698]
[1617331324101,0.15725414,60003.0,60001.0,0.02496]
[1617331324304,0.18,60002.0,60001.0,2.25546]
[1617331324501,0.18,60002.0,60001.0,0.02246]
[1617331324725,0.39239596,60004.0,60001.0,0.18846]
[1617331324925,0.23514169,60004.0,60001.0,0.18846]
[1617331325326,0.23514169,60004.0,60002.0,0.00742977]
[1617331325929,0.53514169,60004.0,60002.0,0.00742977]
[1617331326130,1.943662,60003.0,60000.0,1.34199198]
[1617331326328,0.943662,60001.0,60000.0,1.34199198]
[1617331326526,0.56,60001.0,60000.0,1.34199198]
[1617331326725,0.56,60001.0,60000.0,1.33699198]
[1617331326927,0.06957,60003.0,60000.0,1.33699198]
[1617331327354,0.14723915,60002.0,60000.0,1.29486037]
[1617331327956,0.23514169,60004.0,60000.0,1.29486037]
[1617331330580,0.23514169,60004.0,60000.0,1.28986037]
[1617331332175,0.008,60003.0,60000.0,1.28986037]
[1617331333609,0.008,60003.0,60000.0,1.28966037]
[1617331334817,0.23514169,60004.0,60000.0,1.28966037]
[1617331335013,0.23514169,60004.0,60001.0,0.383664]
[1617331335226,0.23514169,60004.0,60003.0,2.112]
[1617331335425,0.23514169,60004.0,60003.0,2.598917]
[1617331335625,0.23514169,60004.0,60003.0,2.486917]
[1617331335826,0.23514169,60004.0,60003.0,0.536917]
[1617331336026,0.23514169,60004.0,60003.0,0.05]
[1617331336224,0.23514169,60004.0,60003.0,2.193664]
[1617331336628,0.250219,60008.0,60003.0,1.203664]
[1617331337029,0.245219,60008.0,60004.0,1.03]
[1617331337229,0.1468,60017.0,60007.0,0.383635]
[1617331337428,0.1468,60017.0,60011.0,0.106888]
[1617331337627,0.1468,60017.0,60016.0,2.619]
[1617331337851,0.1468,60017.0,60016.0,4.037572]
[1617331338648,0.1468,60017.0,60016.0,4.147802]
[1617331338850,0.1468,60017.0,60016.0,5.214532]
[1617331339048,0.1468,60017.0,60016.0,5.174532]
[1617331339249,0.1468,60017.0,60016.0,5.020532]
[1617331339448,0.1468,60017.0,60016.0,5.184532]
[1617331339647,0.1468,60017.0,60016.0,1.570532]
[1617331339851,0.1468,60017.0,60016.0,1.500302]
[1617331340053,0.1468,60017.0,60016.0,0.383572]
[1617331340253,0.1468,60017.0,60015.0,0.13662478]
[1617331340681,0.1468,60017.0,60004.0,0.00303724]
[1617331340882,0.17,60016.0,60005.0,0.383664]
[1617331341081,0.17,60016.0,60006.0,0.99]
[1617331341280,0.1468,60017.0,60006.0,0.99]
[1617331341281,0.1468,60017.0,60007.0,0.146875]
[1617331341480,0.1468,60017.0,60008.0,0.99]
[1617331341680,0.1468,60017.0,60009.0,0.383638]
[1617331341882,0.1468,60017.0,60014.0,0.16]
[1617331342080,0.1468,60017.0,60016.0,2.566856]
[1617331342281,0.1468,60017.0,60016.0,3.596856]
[1617331342679,0.1468,60017.0,60016.0,3.861856]
[1617331342882,0.1468,60017.0,60016.0,3.821856]
[1617331343101,0.1468,60017.0,60016.0,2.831856]
[1617331343302,0.1468,60017.0,60016.0,2.831456]
[1617331343504,0.1468,60017.0,60016.0,0.371456]
[1617331343704,0.1468,60017.0,60010.0,0.04]
[1617331343903,0.1468,60017.0,60011.0,0.99]
[1617331344102,0.1468,60017.0,60012.0,0.383637]
[1617331344304,0.1468,60017.0,60013.0,0.99]
[1617331344504,0.1468,60017.0,60014.0,0.106445]
[1617331344705,0.1468,60017.0,60014.0,1.096445]
[1617331344906,0.1468,60017.0,60014.0,0.106445]
[1617331345107,0.17,60016.0,60008.0,0.154]
[1617331345308,0.17,60016.0,60009.0,0.99]
[1617331345507,0.17,60016.0,60010.0,0.383637]
[1617331345933,0.195,60015.0,60004.0,0.04]
[1617331346132,0.195,60015.0,60005.0,0.383637]
[1617331347131,0.009,60014.0,60005.0,0.383637]
[1617331347633,0.009,60014.0,60009.0,0.106503]
[1617331347834,0.00097785,60015.0,60010.0,0.99]
[1617331348030,0.1468,60017.0,60014.0,0.383637]
[1617331348031,0.00097785,60016.0,60014.0,0.383637]
[1617331348232,0.13777785,60017.0,60016.0,2.46]
[1617331348465,0.001,60019.0,60016.0,0.383622]
[1617331348664,0.001,60019.0,60017.0,0.106426]
[1617331348866,0.158,60018.0,60005.0,0.00303724]
[1617331349264,0.158,60018.0,60000.0,1.29366037]
[1617331349265,0.35830776,60017.0,60001.0,0.00303724]
[1617331349464,0.009,60016.0,60001.0,0.00303724]
[1617331349664,0.56,60016.0,60000.0,1.29169761]
[1617331349866,0.250204,60009.0,60000.0,1.29169761]
[1617331350069,0.009,60008.0,60000.0,1.28769761]
[1617331350466,0.009,60008.0,60000.0,1.26269761]
[1617331350665,0.06674474,60005.0,60000.0,1.26269761]
[1617331351272,0.259268,60004.0,60000.0,1.26269761]
[1617331352073,0.26,60003.0,60000.0,1.26269761]
[1617331352470,0.008,60002.0,60000.0,1.26269761]
[1617331352671,0.71,60001.0,60000.0,1.26269761]
[1617331352871,0.15,60001.0,60000.0,1.26269761]
[1617331353072,0.008,60002.0,60000.0,1.64633461]
[1617331353272,0.333707,60007.0,60001.0,0.10656]
[1617331353699,0.008,60006.0,60001.0,0.10656]
[1617331354298,0.008,60006.0,60001.0,0.10156]
[1617331354502,0.008,60006.0,60001.0,0.09156]
[1617331354902,0.008,60006.0,60000.0,1.26269761]
[1617331355102,0.185,60005.0,60000.0,1.26269761]
[1617331355503,0.009,60004.0,60000.0,1.26269761]
[1617331355902,0.26843702,60005.0,60000.0,1.26269761]
[1617331356725,0.009,60004.0,60000.0,1.26269761]
[1617331356924,0.134143,60004.0,60001.0,0.383661]
[1617331357726,0.3,60003.0,60001.0,0.383661]
[1617331357925,0.319,60002.0,60000.0,1.26269761]
[1617331358125,0.319,60002.0,60000.0,1.25769761]
[1617331358725,0.319,60002.0,60000.0,1.25269761]
[1617331358950,0.009,60002.0,60000.0,1.25269761]
[1617331359146,0.008,60003.0,60001.0,0.383663]
[1617331359548,0.008,60003.0,60000.0,1.25269761]
[1617331359749,0.31,60001.0,60000.0,1.25269761]
[1617331359950,1.253663,60001.0,60000.0,1.25269761]
[1617331360150,1.575343,60001.0,60000.0,1.25269761]
[1617331360349,1.584343,60001.0,60000.0,1.25269761]
[1617331360753,2.183343,60001.0,60000.0,0.43899761]
[1617331361349,2.024343,60001.0,60000.0,0.43899761]
[1617331362171,2.015343,60001.0,60000.0,0.43899761]
[1617331362838,2.171343,60001.0,60000.0,0.43899761]
[1617331363238,2.015343,60001.0,60000.0,0.43899761]
[1617331364643,2.015743,60001.0,60000.0,0.43899761]
[1617331364842,2.175743,60001.0,60000.0,0.43899761]
[1617331366041,2.175743,60001.0,60000.0,0.42899761]
[1617331366444,2.175743,60001.0,59970.0,0.39150782]
[1617331366647,2.175743,60001.0,59969.0,0.9046]
[1617331366648,0.38670024,60000.0,59971.0,0.99]
[1617331366846,0.250328,59986.0,59977.0,0.0052]
[1617331367046,0.241,59985.0,59969.0,0.9046]
[1617331367245,0.241,59985.0,59969.0,0.99]
[1617331367444,0.215,59985.0,59970.0,0.99]
[1617331367644,0.22,59985.0,59968.0,0.997]
[1617331367847,0.205,59984.0,59967.0,1.8207]
[1617331368045,0.20803724,59984.0,59968.0,0.04]
[1617331368243,0.20803724,59984.0,59963.0,0.0024]
[1617331368244,0.19,59983.0,59963.0,0.0024]
[1617331368445,0.025,59982.0,59964.0,0.9904]
[1617331368642,0.025,59982.0,59965.0,0.99]
[1617331369041,0.035,59982.0,59965.0,0.99]
[1617331369243,0.035,59982.0,59966.0,0.04]
[1617331369443,0.035,59982.0,59967.0,0.99]
[1617331369647,0.035,59982.0,59968.0,0.304]
[1617331369851,0.035,59982.0,59975.0,0.159]
[1617331370047,0.035,59982.0,59976.0,0.086794]
[1617331370448,0.22484,60007.0,60001.0,0.51122]
[1617331370647,0.27,60005.0,60001.0,0.51122]
[1617331370947,0.3861854,60003.0,60001.0,0.51122]
[1617331371146,1.08579209,60002.0,60001.0,0.49606954]
[1617331371348,0.714663,60002.0,60001.0,0.49606954]
[1617331371948,1.714663,60002.0,60001.0,0.49606954]
[1617331374375,1.688663,60002.0,60001.0,0.49586954]
[1617331374803,0.305,60002.0,60001.0,0.49086954]
[1617331375008,0.331,60002.0,60001.0,0.49086954]
[1617331375403,0.331,60002.0,60000.0,1.16814262]
[1617331375606,0.01,60003.0,60001.0,2.521]
[1617331375807,0.01,60003.0,60002.0,0.75690118]
[1617331376004,0.343769,60005.0,60002.0,0.79690118]
[1617331376205,0.025,60004.0,60003.0,2.46]
[1617331376507,0.025,60004.0,60003.0,3.271512]
[1617331376703,0.025,60004.0,60003.0,3.231512]
[1617331376904,0.166,60030.0,60003.0,3.145]
[1617331377108,0.2502,60017.0,60004.0,0.54454506]
[1617331377331,0.2502,60017.0,60001.0,0.00303724]
[1617331377584,0.01,60015.0,60001.0,0.00303724]
[1617331377776,0.01,60015.0,60000.0,1.16814262]
[1617331377978,0.01,60015.0,60001.0,0.00303724]
[1617331378175,0.025,60014.0,60001.0,0.00303724]
[1617331378377,0.025,60014.0,60000.0,1.16814262]
[1617331378576,0.025,60014.0,60001.0,0.00303724]
[1617331378777,0.025,60014.0,60000.0,0.59427738]
[1617331379178,0.3894289,60009.0,60000.0,0.59427738]
[1617331379379,0.383663,60005.0,60000.0,0.59427738]
[1617331379580,0.383663,60001.0,60000.0,0.59427738]
[1617331379782,0.633947,60001.0,60000.0,0.59427738]
[1617331379978,1.658947,60001.0,60000.0,0.59427738]
[1617331380182,1.408663,60001.0,60000.0,0.59427738]
[1617331380377,2.1130919,60001.0,60000.0,0.59427738]
[1617331381182,1.723663,60001.0,60000.0,0.59427738]
[1617331382182,1.688663,60001.0,60000.0,0.59427738]
[1617331384382,1.689063,60001.0,60000.0,0.59427738]
[1617331384581,1.689063,60001.0,60000.0,0.48054038]
[1617331385400,1.689063,60001.0,60000.0,0.43054038]
[1617331385800,1.689063,60001.0,60000.0,0.41522774]
[1617331385999,1.689063,60001.0,60000.0,0.35791868]
[1617331386200,1.689063,60001.0,60000.0,0.21082009]
[1617331386399,1.689063,60001.0,60000.0,0.20630412]
[1617331386797,1.689063,60001.0,60000.0,0.18427569]
[1617331387397,1.689063,60001.0,60000.0,0.11888534]
[1617331387599,2.72642592,60001.0,60000.0,0.11888534]
[1617331387824,2.89142592,60001.0,60000.0,0.11888534]
[1617331388029,2.89142592,60001.0,60000.0,0.09645742]
[1617331388225,2.89142592,60001.0,59990.0,0.002]
[1617331388430,0.00303724,59996.0,59990.0,0.002]
[1617331388629,0.383663,59992.0,59990.0,0.002]
[1617331388828,2.06037636,59991.0,59959.0,0.1554]
[1617331389032,0.004,59989.0,59966.0,0.002]
[1617331389229,0.40194,59978.0,59966.0,0.992]
[1617331389427,0.40194,59978.0,59967.0,0.383663]
[1617331389828,0.56194,59978.0,59966.0,0.002]
[1617331390029,0.56194,59978.0,59967.0,0.15952536]
[1617331390230,0.185,59977.0,59967.0,0.00252536]
[1617331390467,0.18803724,59977.0,59967.0,0.00252536]
[1617331390668,0.18803724,59977.0,59967.0,0.99252536]
[1617331390864,0.185,59977.0,59975.0,0.161]
[1617331391064,0.145,59976.0,59968.0,0.99]
[1617331391265,0.145,59976.0,59969.0,0.383663]
[1617331391467,0.00303724,59986.0,59969.0,1.373663]
[1617331391664,0.00303724,59986.0,59969.0,1.423663]
[1617331391863,0.00303724,59986.0,59970.0,0.00743349]
[1617331392062,0.28,59985.0,59971.0,1.04]
[1617331392262,0.28,59985.0,59972.0,0.99]
[1617331392701,0.305,59984.0,59978.0,0.155]
[1617331393102,0.305,59984.0,59972.0,0.05]
[1617331393306,0.00303724,59983.0,59971.0,0.156]
[1617331393504,0.305,59982.0,59971.0,0.156]
[1617331393704,0.26303724,59981.0,59978.0,0.164]
[1617331393904,1.0,59987.0,59978.0,0.164]
[1617331394111,0.166,59989.0,59978.0,0.99]
[1617331394307,0.166,59989.0,59979.0,0.383663]
[1617331394505,1.05118437,59994.0,59980.0,0.99]
[1617331394706,0.305,59993.0,59979.0,0.99]
[1617331394907,0.00303724,59992.0,59976.0,1.154]
[1617331395105,0.00303724,59992.0,59976.0,0.214]
[1617331395307,0.225,59991.0,59977.0,0.00252487]
[1617331395506,1.06429854,59990.0,59977.0,0.00252487]
[1617331395909,0.215,59989.0,59977.0,0.00252487]
[1617331396106,1.2812633,59988.0,59977.0,0.00252487]
[1617331396505,0.00303724,59987.0,59977.0,0.00252487]
[1617331396709,0.00303724,59987.0,59959.0,0.99]
[1617331396908,0.19303724,59987.0,59969.0,0.16]
[1617331397111,0.19303724,59987.0,59959.0,0.99]
[1617331397112,0.75731662,59986.0,59959.0,0.99]
[1617331397310,2.37085796,59985.0,59959.0,0.99]
[1617331397509,0.0044,59982.0,59960.0,0.156]
[1617331397708,1.07580495,59983.0,59971.0,0.16]
[1617331398109,0.00303724,59982.0,59971.0,0.155]
[1617331398328,1.07580495,59983.0,59967.0,0.002]
[1617331398529,0.0044,59979.0,59967.0,0.05]
[1617331398727,0.0044,59979.0,59968.0,0.985]
[1617331398928,0.0044,59979.0,59968.0,0.535]
[1617331399127,0.305,59978.0,59968.0,0.05]
[1617331399326,1.28256045,59977.0,59960.0,0.485]
[1617331399528,1.28256045,59977.0,59968.0,0.05]
[1617331399726,1.28256045,59977.0,59960.0,0.09]
[1617331399926,0.19,59976.0,59961.0,0.485]
[1617331400128,1.07625627,59975.0,59961.0,0.535]
[1617331400328,1.07625627,59975.0,59962.0,0.485]
[1617331400949,1.07625627,59975.0,59967.0,0.163]
[1617331401151,1.07625627,59975.0,59962.0,0.485]
[1617331401352,1.07625627,59975.0,59958.0,0.485]
[1617331401551,0.18,59974.0,59958.0,0.485]
[1617331402352,0.346,59974.0,59958.0,0.485]
[1617331402551,1.0646674,59973.0,59958.0,0.485]
[1617331402752,1.0646674,59973.0,59967.0,0.161]
[1617331402952,1.0646674,59973.0,59967.0,0.646]
[1617331403153,1.0646674,59973.0,59968.0,0.48]
[1617331403572,0.21,59972.0,59967.0,0.05]
[1617331403776,0.24,59971.0,59968.0,0.48]
[1617331403974,1.07213038,59970.0,59968.0,0.48]
[1617331404174,1.07213038,59970.0,59968.0,0.045]
[1617331404373,0.245,59969.0,59961.0,0.48]
[1617331404575,0.305,59968.0,59961.0,0.48]
[1617331404773,1.07566685,59967.0,59961.0,0.48]
[1617331404973,1.07566685,59967.0,59958.0,0.48]
[1617331405177,1.07566685,59967.0,59955.0,0.48]
[1617331405374,0.305,59966.0,59955.0,0.48]
[1617331405576,0.275,59965.0,59955.0,0.48]
[1617331405975,0.275,59965.0,59955.0,0.475]
[1617331406405,0.275,59965.0,59955.0,0.45]
[1617331407002,0.275,59965.0,59955.0,0.5]
[1617331407203,0.275,59965.0,59956.0,0.606]
[1617331407402,1.07566685,59967.0,59957.0,0.45]
[1617331407648,1.07566685,59967.0,59957.0,0.495]
[1617331407847,1.07566685,59967.0,59958.0,0.445]
[1617331408249,1.07566685,59967.0,59958.0,0.495]
[1617331408448,1.07566685,59967.0,59959.0,0.445]
[1617331408647,0.1468,59995.0,59958.0,0.445]
[1617331408648,1.9019,59992.0,59958.0,0.445]
[1617331408847,1.9019,59992.0,59956.0,0.156]
[1617331408848,0.555,59991.0,59959.0,2.4]
[1617331409053,0.305,59984.0,59960.0,0.37726133]
[1617331409252,0.9537,59984.0,59961.0,0.383663]
[1617331409449,0.9537,59984.0,59962.0,0.00303724]
[1617331409450,0.3987,59984.0,59962.0,0.00303724]
[1617331409650,0.3987,59984.0,59963.0,0.245869]
[1617331409850,0.60249659,59978.0,59964.0,0.00303724]
[1617331410050,0.60249659,59978.0,59965.0,0.383636]
[1617331410249,0.60249659,59978.0,59966.0,0.445]
[1617331410451,0.60249659,59978.0,59970.0,0.156]
[1617331410651,0.60249659,59978.0,59970.0,0.206]
[1617331410852,0.60249659,59978.0,59970.0,0.05]
[1617331411052,0.96664659,59978.0,59960.0,0.00503724]
[1617331411252,0.96664659,59978.0,59962.0,0.00303724]
[1617331411450,0.18,59977.0,59963.0,0.086872]
[1617331411856,0.18,59977.0,59964.0,0.445]
[1617331412053,0.60249659,59978.0,59967.0,0.162]
[1617331412254,0.60249659,59978.0,59968.0,0.571863]
[1617331412455,0.59249659,59978.0,59969.0,0.445]
[1617331412654,0.59249659,59978.0,59970.0,0.423602]
[1617331413254,0.59249659,59978.0,59970.0,0.383602]
[1617331413857,0.69851659,59978.0,59969.0,0.05]
[1617331414080,0.69851659,59978.0,59965.0,0.00303724]
[1617331414081,0.16,59976.0,59970.0,0.445]
[1617331414288,1.09658659,59978.0,59970.0,0.445]
[1617331414289,0.59249659,59978.0,59976.0,0.161]
[1617331414480,0.59249659,59978.0,59977.0,2.5]
[1617331414679,0.59249659,59978.0,59977.0,1.128663]
[1617331414878,0.59249659,59978.0,59977.0,1.143663]
[1617331415280,9.659e-05,59978.0,59977.0,3.937345]
[1617331415479,9.659e-05,59978.0,59977.0,4.442365]
[1617331415678,9.659e-05,59978.0,59977.0,4.892365]
[1617331416080,9.659e-05,59978.0,59977.0,4.692365]
[1617331416700,9.659e-05,59978.0,59977.0,4.77578541]
[1617331418105,9.659e-05,59978.0,59977.0,4.358683]
[1617331418305,9.659e-05,59978.0,59977.0,4.532023]
[1617331419104,9.659e-05,59978.0,59977.0,4.472003]
[1617331419533,9.659e-05,59978.0,59977.0,4.258663]
[1617331419731,9.659e-05,59978.0,59977.0,4.298663]
[1617331420131,9.659e-05,59978.0,59977.0,4.318663]
[1617331420333,9.659e-05,59978.0,59977.0,4.233663]
[1617331420932,9.659e-05,59978.0,59977.0,4.273663]
[1617331422351,9.659e-05,59978.0,59977.0,4.24898576]
[1617331422551,9.659e-05,59978.0,59977.0,4.44898576]
[1617331422990,9.659e-05,59978.0,59977.0,4.24898576]
[1617331423591,9.659e-05,59978.0,59977.0,4.24488476]
[1617331424800,9.659e-05,59978.0,59977.0,3.79988476]
[1617331424997,9.659e-05,59978.0,59977.0,4.24488476]
[1617331425797,9.659e-05,59978.0,59977.0,3.79988476]
[1617331427201,9.659e-05,59978.0,59977.0,4.24488476]
[1617331427405,9.659e-05,59978.0,59977.0,4.23988476]
[1617331427602,9.659e-05,59978.0,59977.0,4.15129376]
[1617331427802,9.659e-05,59978.0,59977.0,4.058663]
[1617331429007,0.326,60005.0,59986.0,0.39890341]
[1617331429209,0.326,60005.0,59992.0,0.159]
[1617331429210,0.166,60005.0,59992.0,0.159]
[1617331429408,0.166,60005.0,59999.0,2.46]
[1617331429609,0.1468,60017.0,59999.0,2.936697]
[1617331430424,0.557,60000.0,59999.0,0.086697]
[1617331430625,0.940663,60000.0,59987.0,0.00303724]
[1617331430823,0.002,60000.0,59987.0,0.00303724]
[1617331431022,0.002,60000.0,59988.0,0.383663]
[1617331431425,0.002,60000.0,59989.0,0.16403724]
[1617331431624,0.002,60000.0,59990.0,0.226631]
[1617331431824,0.002,60000.0,59996.0,0.155]
[1617331432024,0.002,60000.0,59997.0,0.383603]
[1617331432660,0.555,59999.0,59997.0,0.383603]
[1617331432858,0.62144,60000.0,59988.0,0.003]
[1617331433060,0.555,59999.0,59988.0,0.003]
[1617331433255,0.14,59998.0,59988.0,0.003]
[1617331433458,0.555,59998.0,59988.0,0.003]
[1617331433662,0.555,59997.0,59988.0,0.003]
[1617331433862,0.383663,59996.0,59988.0,0.003]
[1617331434060,1.915,59995.0,59978.0,2.07076474]
[1617331434261,0.555,59994.0,59978.0,2.07076474]
[1617331434461,1.22,59995.0,59978.0,2.07076474]
[1617331434661,0.06072,59997.0,59986.0,0.155]
[1617331435082,0.004,59998.0,59993.0,0.155]
[1617331435279,0.002,60000.0,59994.0,0.081633]
[1617331436877,0.555,59999.0,59994.0,0.076633]
[1617331437078,0.383663,59998.0,59986.0,0.161]
[1617331437280,0.00250454,59994.0,59986.0,0.05]
[1617331437480,0.00250454,59994.0,59978.0,1.1236]
[1617331437481,0.555,59993.0,59978.0,1.1236]
[1617331437762,0.555,59993.0,59979.0,0.383673]
[1617331438163,0.39223055,59980.0,59979.0,0.383673]
[1617331438364,0.38928,59980.0,59979.0,0.383673]
[1617331438561,0.38928,59980.0,59979.0,0.540673]
[1617331438762,0.38928,59980.0,59979.0,0.720673]
[1617331438961,0.38928,59980.0,59979.0,0.563673]
[1617331439561,0.00650454,59994.0,59979.0,0.563673]
[1617331439763,0.555,59993.0,59979.0,0.383673]
[1617331439960,0.00294723,59984.0,59979.0,0.378673]
[1617331440162,0.00294739,59980.0,59979.0,0.378673]
[1617331440408,0.37423,59984.0,59979.0,0.373673]
[1617331441208,0.37423,59984.0,59981.0,0.163]
[1617331441408,0.37423,59984.0,59982.0,0.076702]
[1617331442010,0.37423,59984.0,59980.0,0.18]
[1617331442210,0.00294726,59983.0,59981.0,0.383697]
[1617331442408,0.00294731,59982.0,59981.0,0.383697]
[1617331442608,0.00250454,59994.0,59981.0,0.383697]
[1617331442808,0.00250454,59994.0,59982.0,0.18]
[1617331443011,0.00294729,59984.0,59983.0,0.806658]
[1617331443212,0.00294729,59984.0,59983.0,0.066658]
[1617331444009,0.00294729,59984.0,59983.0,0.546658]
[1617331444210,0.00294729,59984.0,59983.0,0.541658]
[1617331444413,0.00294719,59986.0,59983.0,0.251658]
[1617331444610,0.00294719,59986.0,59985.0,0.38367]
[1617331445411,0.00294716,59987.0,59985.0,0.37867]
[1617331445632,0.00294716,59987.0,59986.0,0.061653]
[1617331446235,0.00294716,59987.0,59979.0,0.00252498]
[1617331446436,0.41701,59987.0,59986.0,0.00252475]
[1617331446635,1.355701,59987.0,59986.0,0.00252475]
[1617331446833,1.395701,59987.0,59986.0,0.00252475]
[1617331447033,0.840701,59987.0,59986.0,0.00252475]
[1617331447634,0.00255758,59980.0,59978.0,0.8286]
[1617331448263,0.00255758,59980.0,59979.0,0.056685]
[1617331448462,0.00550429,59980.0,59979.0,0.056685]
[1617331448660,0.00255758,59980.0,59979.0,0.056685]
[1617331448860,1.42255758,59980.0,59978.0,0.8286]
[1617331449061,2.168691,59979.0,59978.0,0.8286]
[1617331449259,2.168691,59979.0,59978.0,0.2364]
[1617331449462,2.168691,59979.0,59978.0,0.01358]
[1617331449463,0.938691,59979.0,59978.0,0.01358]
[1617331449665,0.938691,59979.0,59954.0,0.0008]
[1617331449666,0.05,59978.0,59954.0,0.0008]
[1617331449859,0.988691,59977.0,59954.0,0.0008]
[1617331450060,0.43235164,59972.0,59954.0,0.0008]
[1617331450259,0.775741,59973.0,59954.0,0.0008]
[1617331450260,1.563691,59969.0,59954.0,0.0008]
[1617331450460,2.118691,59969.0,59954.0,0.0008]
[1617331450658,2.28864666,59969.0,59954.0,0.0008]
[1617331451087,0.0716,59950.0,59949.0,0.0012]